fUSD/lending_fUSD_20250512
["ID","MTS","AMOUNT","RATE_DAILY","PERIOD"]
[360785359,1747023031751,-207.4,0.00013142,2]
[360785360,1747023031761,-3000.0,0.0001315,2]
[360785361,1747023031771,-150.0,0.00013439,2]
[360785362,1747023031784,-150.0,0.0001344,2]
[360785363,1747023031794,-150.0,0.00013456,2]
[360785364,1747023031804,-150.0,0.00013491,2]
[360785365,1747023031813,-150.0,0.00013496,2]
[360785366,1747023031823,-150.0,0.000135,2]
[360785367,1747023031832,-300.0,0.000135,2]
[360785368,1747023031842,-150.0,0.00013502,2]
[360785369,1747023031851,-150.0,0.00013505,2]
[360785370,1747023031861,-150.0,0.00013507,2]
[360785371,1747023031871,-150.99,0.00013507,2]
[360785372,1747023031880,-150.0,0.00013509,2]
[360785373,1747023031890,-150.0,0.00013509,2]
[360785374,1747023031899,-150.0,0.00013511,2]
[360785375,1747023031909,-319.95,0.00013515,2]
[360785376,1747023031918,-150.0,0.0001352,2]
[360785377,1747023031928,-150.0,0.00013523,2]
[360785378,1747023031937,-150.0,0.00013523,2]
[360785379,1747023031947,-150.0,0.00013523,2]
[360785380,1747023031957,-150.0,0.00013527,2]
[360785381,1747023031967,-150.0,0.00013527,2]
[360785382,1747023031977,-150.0,0.00013528,2]
[360785383,1747023031986,-150.0,0.00013534,2]
[360785384,1747023031996,-150.0,0.00013534,2]
[360785385,1747023032005,-150.0,0.00013536,2]
[360785386,1747023032015,-150.0,0.00013537,2]
[360785387,1747023032024,-150.0,0.00013537,2]
[360785388,1747023032034,-150.0,0.00013538,2]
[360785389,1747023032045,-150.0,0.00013539,2]
[360785390,1747023032056,-150.0,0.0001354,2]
[360785391,1747023032070,-150.0,0.0001354,2]
[360785392,1747023032079,-150.0,0.00013541,2]
[360785393,1747023032089,-150.0,0.00013542,2]
[360785394,1747023032098,-150.0,0.00013549,2]
[360785396,1747023032108,-150.0,0.0001355,2]
[360785398,1747023032117,-150.0,0.00013552,2]
[360785399,1747023032127,-150.0,0.00013552,2]
[360785400,1747023032136,-150.0,0.00013553,2]
[360785401,1747023032147,-776.8136,0.00013555,2]
[360785402,1747023032157,-150.0,0.00013559,2]
[360785404,1747023032167,-2574.3666079,0.00013561,2]
[360785406,1747023032176,-150.0,0.00013562,2]
[360785408,1747023032186,-150.0,0.00013564,2]
[360785410,1747023032196,-1000.0,0.00013567,2]
[360785412,1747023032205,-150.0,0.00013567,2]
[360785414,1747023032215,-2335.60576014,0.00013569,2]
[360785415,1747023032228,-44455.83603986,0.00013569,2]
[360785416,1747023032238,-5799.3002,0.00013569,2]
[360785417,1747023032247,-9269.0626,0.00013569,2]
[360785418,1747023032257,-2056.1695,0.00013569,2]
[360785419,1747023032266,-150.0,0.00013569,2]
[360785420,1747023032276,-150.0,0.00013569,2]
[360785421,1747023032285,-603.54089292,0.00013569,2]
[360785422,1747023032294,-150.0,0.00013572,2]
[360785423,1747023032304,-2574.36660789,0.00013573,2]
[360785424,1747023032314,-1000.0,0.00013574,2]
[360785425,1747023032326,-150.0,0.00013577,2]
[360785426,1747023032339,-150.0,0.00013581,2]
[360785427,1747023032348,-150.0,0.00013582,2]
[360785428,1747023032358,-150.0,0.00013583,2]
[360785429,1747023032368,-150.0,0.00013583,2]
[360785430,1747023032378,-150.0,0.00013583,2]
[360785431,1747023032387,-1574.94425175,0.00013584,2]
[360785432,1747023032413,-999.42235614,0.00013584,2]
[360785433,1747023032423,-150.0,0.00013589,2]
[360785434,1747023032433,-150.0,0.00013592,2]
[360785435,1747023032443,-2574.36660789,0.00013596,2]
[360785436,1747023032452,-166.03045955,0.00013598,2]
[360785437,1747023032462,-150.0,0.00013599,2]
[360785438,1747023032471,-150.0,0.000136,2]
[360785439,1747023032481,-403.35,0.000136,2]
[360785440,1747023032490,-2574.36660789,0.00013608,2]
[360785441,1747023032499,-150.0,0.00013608,2]
[360785442,1747023032509,-150.0,0.0001361,2]
[360785443,1747023032520,-150.0,0.00013616,2]
[360785444,1747023032529,-150.0,0.00013619,2]
[360785445,1747023032539,-2574.36660789,0.00013619,2]
[360785446,1747023032548,-150.0,0.00013623,2]
[360785447,1747023032558,-150.0,0.00013629,2]
[360785448,1747023032568,-150.0,0.00013629,2]
[360785449,1747023032578,-150.0,0.00013633,2]
[360785450,1747023032589,-150.0,0.00013634,2]
[360785451,1747023032599,-150.0,0.00013639,2]
[360785452,1747023032608,-150.0,0.0001364,2]
[360785453,1747023032618,-150.0,0.0001364,2]
[360785454,1747023032628,-150.0,0.00013641,2]
[360785455,1747023032638,-150.0,0.00013644,2]
[360785456,1747023032647,-150.0,0.00013644,2]
[360785457,1747023032658,-150.0,0.00013644,2]
[360785458,1747023032668,-150.0,0.00013646,2]
[360785459,1747023032677,-1666.17103824,0.00013651,2]
[360785460,1747023032688,-4606.304381,0.00013655,2]
[360785461,1747023032734,-6158.0612847,0.00013655,2]
[360785462,1747023032744,-150.0,0.00013657,2]
[360785463,1747023032754,-1666.17103824,0.00013659,2]
[360785464,1747023032764,-150.0,0.00013661,2]
[360785465,1747023032774,-525.82400426,0.00013665,2]
[360785466,1747023032784,-150.0,0.00013666,2]
[360785467,1747023032795,-601.00455678,0.00013666,2]
[360785468,1747023032805,-206.96803525,0.00013667,2]
[360785469,1747023032815,-198.44023833,0.00013667,2]
[360785470,1747023032825,-1666.17103824,0.00013667,2]
[360785471,1747023032835,-525.82400426,0.00013667,2]
[360785472,1747023032845,-206.96803521,0.00013667,2]
[360785473,1747023032854,-601.00455678,0.00013668,2]
[360785474,1747023032864,-206.96803521,0.00013668,2]
[360785475,1747023032874,-206.96803521,0.00013668,2]
[360785476,1747023032885,-198.44023833,0.00013668,2]
[360785477,1747023032895,-206.96803521,0.00013668,2]
[360785478,1747023032905,-206.96803521,0.00013669,2]
[360785479,1747023032915,-206.96803521,0.00013669,2]
[360785480,1747023032925,-200.0,0.00013669,2]
[360785481,1747023032935,-198.44023833,0.00013669,2]
[360785482,1747023032945,-151.0,0.00013669,2]
[360785483,1747023032954,-812.07094678,0.00013669,2]
[360785484,1747023032964,-163.77172511,0.00013669,2]
[360785485,1747023032974,-150.0,0.00013669,2]
[360785486,1747023032984,-1200.0,0.00013669,2]
[360785487,1747023032993,-601.00455678,0.00013669,2]
[360785488,1747023033003,-1127.9345354,0.00013669,2]
[360785489,1747023033013,-525.82400426,0.00013669,2]
[360785490,1747023033023,-150.0,0.0001367,2]
[360785491,1747023033033,-150.0,0.00013672,2]
[360785492,1747023033042,-500.0,0.00013673,2]
[360785493,1747023033052,-500.0,0.00013673,2]
[360785494,1747023033065,-500.0,0.00013673,2]
[360785495,1747023033075,-169.67575189,0.00013673,2]
[360785496,1747023033085,-505.71531887,0.00013673,2]
[360785497,1747023033094,-500.0,0.00013673,2]
[360785498,1747023033105,-502.27405274,0.00013673,2]
[360785499,1747023033116,-170.27018444,0.00013673,2]
[360785500,1747023033126,-501.16219126,0.00013673,2]
[360785501,1747023033136,-500.0,0.00013673,2]
[360785502,1747023033148,-500.0,0.00013673,2]
[360785503,1747023033158,-500.0,0.00013673,2]
[360785504,1747023033167,-500.0,0.00013673,2]
[360785505,1747023033177,-500.0,0.00013673,2]
[360785506,1747023033187,-501.53942014,0.00013673,2]
[360785507,1747023033196,-500.0,0.00013673,2]
[360785508,1747023033206,-453.1549407,0.00013673,2]
[360785509,1747023033216,-500.0,0.00013673,2]
[360785510,1747023033225,-150.0,0.00013675,2]
[360785511,1747023033236,-184.51,0.00013681,2]
[360785512,1747023033245,-150.0,0.00013682,2]
[360785513,1747023033257,-12500.0,0.00013682,2]
[360785514,1747023033266,-150.0,0.00013687,2]
[360785515,1747023033276,-782.0,0.0001369,2]
[360785516,1747023033285,-693.3919763,0.0001369,2]
[360785517,1747023033295,-12500.0,0.00013691,2]
[360785518,1747023033304,-150.0,0.00013693,2]
[360785519,1747023033314,-300.0,0.00013697,2]
[360785520,1747023033329,-202.86085126,0.00013698,2]
[360785521,1747023033339,-225.45767679,0.00013698,2]
[360785522,1747023033349,-199.41332523,0.00013698,2]
[360785523,1747023033359,-404.49077882,0.00013698,2]
[360785524,1747023033369,-392.30806146,0.00013698,2]
[360785525,1747023033379,-500.0,0.00013698,2]
[360785526,1747023033388,-500.0,0.00013698,2]
[360785527,1747023033397,-213.78600568,0.00013698,2]
[360785528,1747023033407,-183.4217015,0.00013698,2]
[360785529,1747023033416,-185.80137142,0.00013698,2]
[360785530,1747023033425,-297.42170741,0.00013698,2]
[360785531,1747023033435,-400.0,0.00013698,2]
[360785532,1747023033444,-400.0,0.00013698,2]
[360785533,1747023033454,-396.75381821,0.00013698,2]
[360785534,1747023033463,-400.0,0.00013698,2]
[360785535,1747023033473,-280.59073219,0.00013698,2]
[360785536,1747023033482,-358.59772479,0.00013698,2]
[360785537,1747023033492,-403.00037116,0.00013698,2]
[360785538,1747023033501,-400.0,0.00013698,2]
[360785539,1747023033511,-400.20944695,0.00013698,2]
[360785540,1747023033520,-499.148849,0.00013698,2]
[360785541,1747023033529,-499.148849,0.00013698,2]
[360785542,1747023033539,-400.0,0.00013698,2]
[360785543,1747023033548,-400.0,0.00013698,2]
[360785544,1747023033558,-400.0,0.00013698,2]
[360785545,1747023033568,-400.0,0.00013698,2]
[360785546,1747023033577,-400.0,0.00013698,2]
[360785547,1747023033586,-400.0,0.00013698,2]
[360785548,1747023033596,-160.07636261,0.00013698,2]
[360785549,1747023033607,-401.2444993,0.00013698,2]
[360785550,1747023033616,-400.0,0.00013698,2]
[360785551,1747023033626,-400.0,0.00013698,2]
[360785552,1747023033636,-582.52,0.00013698,2]
[360785553,1747023033645,-400.0,0.00013698,2]
[360785554,1747023033655,-400.0,0.00013698,2]
[360785555,1747023033665,-400.0,0.00013698,2]
[360785556,1747023033674,-400.0,0.00013698,2]
[360785557,1747023033684,-400.0,0.00013698,2]
[360785558,1747023033693,-400.0,0.00013698,2]
[360785559,1747023033703,-522.89,0.00013698,2]
[360785560,1747023033712,-400.0,0.00013698,2]
[360785561,1747023033722,-801.98,0.00013698,2]
[360785562,1747023033731,-400.0,0.00013698,2]
[360785563,1747023033741,-151.0,0.00013698,2]
[360785564,1747023033750,-151.0,0.00013698,2]
[360785565,1747023033760,-237.72732122,0.00013698,2]
[360785566,1747023033769,-400.0,0.00013698,2]
[360785567,1747023033779,-894.19,0.00013698,2]
[360785568,1747023033788,-400.0,0.00013698,2]
[360785569,1747023033798,-400.0,0.00013698,2]
[360785570,1747023033808,-400.0,0.00013698,2]
[360785571,1747023033817,-151.0,0.00013698,2]
[360785572,1747023033827,-168.173686,0.00013698,2]
[360785573,1747023033837,-400.0,0.00013698,2]
[360785574,1747023033847,-400.0,0.00013698,2]
[360785575,1747023033858,-400.0,0.00013698,2]
[360785576,1747023033867,-209.42154778,0.00013698,2]
[360785577,1747023033877,-1199.18,0.00013698,2]
[360785578,1747023033887,-400.0,0.00013698,2]
[360785579,1747023033896,-400.0,0.00013698,2]
[360785580,1747023033906,-400.0,0.00013698,2]
[360785581,1747023033916,-400.0,0.00013698,2]
[360785582,1747023033925,-400.0,0.00013698,2]
[360785583,1747023033934,-400.0,0.00013698,2]
[360785584,1747023033944,-1361.73,0.00013698,2]
[360785585,1747023033953,-400.0,0.00013698,2]
[360785586,1747023033962,-311.02219603,0.00013698,2]
[360785587,1747023033972,-1605.46,0.00013698,2]
[360785588,1747023033982,-352.83137202,0.00013698,2]
[360785589,1747023034000,-169.34862798,0.00013698,2]
[360785590,1747023034011,-400.0,0.00013698,2]
[360785591,1747023034020,-400.0,0.00013698,2]
[360785592,1747023034030,-714.93,0.00013698,2]
[360785593,1747023034040,-400.0,0.00013698,2]
[360785594,1747023034049,-163.41465069,0.00013698,2]
[360785595,1747023034059,-400.0,0.00013698,2]
[360785596,1747023034073,-400.0,0.00013698,2]
[360785597,1747023034082,-400.0,0.00013698,2]
[360785598,1747023034092,-673.61,0.00013698,2]
[360785599,1747023034101,-400.0,0.00013698,2]
[360785600,1747023034112,-400.0,0.00013698,2]
[360785601,1747023034121,-400.0,0.00013698,2]
[360785602,1747023034131,-400.0,0.00013698,2]
[360785603,1747023034141,-400.0,0.00013698,2]
[360785604,1747023034151,-400.0,0.00013698,2]
[360785605,1747023034161,-2509.66,0.00013698,2]
[360785606,1747023034170,-400.0,0.00013698,2]
[360785607,1747023034180,-657.01,0.00013698,2]
[360785608,1747023034189,-400.0,0.00013698,2]
[360785609,1747023034199,-400.0,0.00013698,2]
[360785610,1747023034208,-400.0,0.00013698,2]
[360785611,1747023034218,-400.0,0.00013698,2]
[360785612,1747023034228,-496.3765496,0.00013698,2]
[360785613,1747023034238,-1091.18,0.00013698,2]
[360785614,1747023034247,-400.0,0.00013698,2]
[360785615,1747023034257,-400.0,0.00013698,2]
[360785616,1747023034267,-191.83690584,0.00013698,2]
[360785617,1747023034276,-400.0,0.00013698,2]
[360785618,1747023034286,-440.13699726,0.00013698,2]
[360785630,1747023040317,-170.30730665,0.00013631,2]
[360785639,1747023045505,-2404.05930124,0.00013631,2]
[360785640,1747023045514,-166.03045954,0.00013633,2]
[360785641,1747023045523,-2574.36660789,0.00013643,2]
[360785642,1747023045532,-2574.36660789,0.00013654,2]
[360785643,1747023045542,-166.03045954,0.00013667,2]
[360785644,1747023045551,-707.0,0.00013698,2]
[360785645,1747023045561,-81.03305766,0.00013698,2]
[360785646,1747023045570,-400.0,0.00013698,2]
[360785647,1747023045580,-400.0,0.00013698,2]
[360785648,1747023045589,-400.0,0.00013698,2]
[360785649,1747023045598,-430.58,0.00013698,2]
[360785650,1747023045607,-400.0,0.00013698,2]
[360785651,1747023045619,-542.97207072,0.00013698,2]
[360785652,1747023045628,-400.0,0.00013698,2]
[360785653,1747023045638,-400.0,0.00013698,2]
[360785654,1747023045648,-1162.44,0.00013698,2]
[360785655,1747023045657,-924.81,0.00013698,2]
[360785656,1747023045667,-206.81160882,0.00013698,2]
[360785657,1747023045676,-368.52,0.00013698,2]
[360785658,1747023045686,-400.0,0.00013698,2]
[360785659,1747023045695,-400.0,0.00013698,2]
[360785660,1747023045705,-1388.3,0.00013698,2]
[360785661,1747023045714,-400.0,0.00013698,2]
[360785662,1747023045724,-936.77,0.00013698,2]
[360785663,1747023045734,-424.44,0.00013698,2]
[360785664,1747023045744,-400.0,0.00013698,2]
[360785665,1747023045754,-151.0,0.00013698,2]
[360785666,1747023045763,-400.0,0.00013698,2]
[360785667,1747023045774,-151.0,0.00013698,2]
[360785668,1747023045784,-829.96,0.00013698,2]
[360785669,1747023045794,-400.0,0.00013698,2]
[360785670,1747023045804,-400.0,0.00013698,2]
[360785671,1747023045814,-400.0,0.00013698,2]
[360785672,1747023045824,-400.0,0.00013698,2]
[360785673,1747023045834,-1071.81,0.00013698,2]
[360785674,1747023045844,-2005.95,0.00013698,2]
[360785675,1747023045854,-400.0,0.00013698,2]
[360785676,1747023045864,-376.81670933,0.00013698,2]
[360785677,1747023045878,-400.0,0.00013698,2]
[360785678,1747023045888,-400.0,0.00013698,2]
[360785679,1747023045898,-400.0,0.00013698,2]
[360785680,1747023045908,-743.46,0.00013698,2]
[360785681,1747023045917,-633.73,0.00013698,2]
[360785682,1747023045927,-400.0,0.00013698,2]
[360785683,1747023045936,-400.0,0.00013698,2]
[360785684,1747023045946,-541.57,0.00013698,2]
[360785685,1747023045956,-400.0,0.00013698,2]
[360785686,1747023045965,-400.0,0.00013698,2]
[360785687,1747023045975,-600.19,0.00013698,2]
[360785688,1747023045987,-1676.83,0.00013698,2]
[360785689,1747023045996,-400.0,0.00013698,2]
[360785690,1747023046006,-400.0,0.00013698,2]
[360785691,1747023046015,-400.0,0.00013698,2]
[360785692,1747023046025,-400.0,0.00013698,2]
[360785693,1747023046034,-400.0,0.00013698,2]
[360785695,1747023046044,-400.0,0.00013698,2]
[360785697,1747023046053,-496.02,0.00013698,2]
[360785698,1747023046064,-519.47,0.00013698,2]
[360785699,1747023046076,-1070.55,0.00013698,2]
[360785700,1747023046086,-400.0,0.00013698,2]
[360785701,1747023046095,-694.41,0.00013698,2]
[360785702,1747023046106,-400.0,0.00013698,2]
[360785703,1747023046117,-400.0,0.00013698,2]
[360785705,1747023046127,-592.92,0.00013698,2]
[360785706,1747023046136,-400.0,0.00013698,2]
[360785707,1747023046147,-436.82285347,0.00013698,2]
[360785708,1747023046156,-7528.451178,0.00013698,2]
[360785709,1747023046165,-6295.85502416,0.00013698,2]
[360785710,1747023046181,-364.337631,0.00013698,2]
[360785711,1747023046233,-868.25852284,0.00013698,2]
[360785712,1747023046242,-151.0,0.00013698,2]
[360785713,1747023046252,-151.0,0.00013698,2]
[360785714,1747023046261,-151.0,0.00013698,2]
[360785715,1747023046271,-151.0,0.00013698,2]
[360785716,1747023046280,-400.0,0.00013698,2]
[360785717,1747023046290,-4127.74146216,0.00013698,2]
[360785718,1747023046355,-1357.25950938,0.00013698,2]
[360785719,1747023046367,-2043.45020646,0.00013698,2]
[360785720,1747023046377,-569.69,0.00013698,2]
[360785721,1747023046387,-7528.451178,0.00013698,2]
[360785722,1747023046396,-400.0,0.00013698,2]
[360785723,1747023046405,-400.0,0.00013698,2]
[360785724,1747023046414,-524.43656722,0.00013698,2]
[360785725,1747023046451,-153.13343278,0.00013698,2]
[360785726,1747023046460,-400.0,0.00013698,2]
[360785727,1747023046469,-431.37,0.00013698,2]
[360785728,1747023046478,-400.0,0.00013698,2]
[360785729,1747023046488,-423.95,0.00013698,2]
[360785730,1747023046497,-400.0,0.00013698,2]
[360785731,1747023046506,-400.0,0.00013698,2]
[360785732,1747023046515,-151.0,0.00013698,2]
[360785733,1747023046527,-199.82946689,0.00013698,2]
[360785734,1747023046536,-151.0,0.00013698,2]
[360785735,1747023046546,-162.603812,0.00013698,2]
[360785736,1747023046555,-97.95348299,0.00013698,2]
[360785737,1747023092897,-228.63258853,0.00012528,2]
[360785738,1747023103029,-92.80556594,0.00012528,2]
[360785745,1747023167287,3000.0,0.0001178,2]
[360785746,1747023168364,-157.19443406,0.00012528,2]
[360785748,1747023178197,-169.31343352,0.00012528,2]
[360785751,1747023323557,-159.16,0.00012624,2]
[360785752,1747023327691,-90.84,0.00012624,2]
[360785757,1747023725201,-161.3413666,0.00012587,2]
[360785758,1747023725223,-179.13612983,0.00012602,2]
[360785759,1747023725254,-631.79557064,0.00012602,2]
[360785760,1747023725286,-500.0,0.00012602,2]
[360785761,1747023725308,-250.0,0.00012604,2]
[360785762,1747023725331,-761.77,0.00012604,2]
[360785763,1747023748017,161.56,0.00012523,2]
[360785764,1747023890930,16459.1,0.00012528,2]
[360785769,1747023960699,406.21,0.00012528,2]
[360785770,1747023967447,489.08693293,0.00010611,2]
[360785771,1747023967472,349.34306707,0.00010611,2]
[360785788,1747024178820,1000.0,0.00012529,2]
[360785793,1747024202940,285.7,0.00012527,2]
[360785811,1747024232297,-838.43,0.00012875,2]
[360785812,1747024232307,-168.14,0.00012906,2]
[360785813,1747024232316,-668.65185757,0.00013142,2]
[360785814,1747024232326,-207.4,0.00013142,2]
[360785815,1747024232335,-3000.0,0.0001315,2]
[360785816,1747024232345,-150.0,0.00013396,2]
[360785817,1747024232354,-150.0,0.00013403,2]
[360785818,1747024232364,-150.0,0.00013405,2]
[360785819,1747024232373,-150.0,0.00013411,2]
[360785820,1747024232383,-150.0,0.00013424,2]
[360785821,1747024232392,-150.0,0.00013431,2]
[360785822,1747024232401,-150.0,0.00013434,2]
[360785823,1747024232411,-150.0,0.00013437,2]
[360785824,1747024232420,-150.0,0.0001344,2]
[360785825,1747024232431,-150.0,0.0001344,2]
[360785826,1747024232443,-150.0,0.00013453,2]
[360785827,1747024232452,-1051.39264209,0.00013454,2]
[360785828,1747024232494,-148.60735791,0.00013454,2]
[360785829,1747024232504,-150.0,0.00013457,2]
[360785830,1747024232514,-150.0,0.0001346,2]
[360785831,1747024232527,-134.73664209,0.00013461,2]
[360785832,1747024232539,-15.26335791,0.00013461,2]
[360785833,1747024232548,-150.0,0.00013475,2]
[360785834,1747024232558,-150.0,0.00013477,2]
[360785835,1747024232567,-300.0,0.00013478,2]
[360785836,1747024232577,-300.0,0.00013479,2]
[360785837,1747024232587,-150.0,0.0001348,2]
[360785838,1747024232596,-150.0,0.00013484,2]
[360785839,1747024232606,-150.0,0.00013493,2]
[360785840,1747024232615,-150.0,0.00013498,2]
[360785841,1747024232625,-150.0,0.00013498,2]
[360785842,1747024232635,-150.0,0.00013498,2]
[360785843,1747024232644,-150.0,0.00013498,2]
[360785844,1747024232653,-1000.0,0.00013498,2]
[360785845,1747024232663,-2500.0,0.00013498,2]
[360785846,1747024232674,-540.8197,0.00013498,2]
[360785847,1747024232685,-257.43666087,0.000135,2]
[360785848,1747024232695,-257.43666078,0.00013511,2]
[360785849,1747024232704,-150.0,0.00013515,2]
[360785850,1747024232713,-150.0,0.00013515,2]
[360785851,1747024232723,-150.0,0.00013519,2]
[360785852,1747024232733,-150.0,0.00013519,2]
[360785853,1747024232742,-150.0,0.00013519,2]
[360785854,1747024232751,-150.0,0.00013521,2]
[360785855,1747024232760,-257.43666078,0.00013522,2]
[360785856,1747024232769,-150.0,0.00013532,2]
[360785857,1747024232779,-257.43666078,0.00013533,2]
[360785858,1747024232788,-150.0,0.00013534,2]
[360785859,1747024232797,-150.0,0.00013535,2]
[360785860,1747024232807,-150.0,0.00013541,2]
[360785861,1747024232816,-257.43666078,0.00013544,2]
[360785862,1747024232825,-150.0,0.00013548,2]
[360785863,1747024232834,-150.0,0.00013553,2]
[360785864,1747024232843,-257.43666078,0.00013554,2]
[360785865,1747024232852,-257.43666078,0.00013565,2]
[360785866,1747024232861,-2007.8713,0.00013566,2]
[360785867,1747024232870,-2908.56549333,0.00013569,2]
[360785868,1747024232885,-28789.54170667,0.00013569,2]
[360785869,1747024232894,-441.911,0.00013569,2]
[360785870,1747024232904,-150.0,0.0001357,2]
[360785871,1747024232913,-150.0,0.00013573,2]
[360785872,1747024232922,-206.13074165,0.00013576,2]
[360785873,1747024232931,-257.43666078,0.00013576,2]
[360785874,1747024232940,-150.0,0.00013581,2]
[360785875,1747024232949,-151.48308212,0.00013583,2]
[360785876,1747024232958,-150.0,0.00013585,2]
[360785877,1747024232967,-150.0,0.00013587,2]
[360785878,1747024232975,-257.43666078,0.00013587,2]
[360785879,1747024232984,-150.0,0.0001359,2]
[360785880,1747024232993,-150.0,0.0001359,2]
[360785881,1747024233002,-150.0,0.00013595,2]
[360785882,1747024233012,-310.51076609,0.00013598,2]
[360785883,1747024233021,-470.40515699,0.00013598,2]
[360785884,1747024233030,-257.43666078,0.00013598,2]
[360785885,1747024233039,-1006.51562957,0.00013598,2]
[360785886,1747024233049,-151.62951034,0.00013598,2]
[360785887,1747024233059,-3091.7606,0.00013598,2]
[360785888,1747024233068,-272479.64767228,0.00013598,2]
[360785889,1747024233091,-5503.42974042,0.00013598,2]
[360785890,1747024233102,-2859.89803071,0.00013598,2]
[360785891,1747024233137,-7719.29338366,0.00013598,2]
[360785892,1747024233149,-15945.70796616,0.00013598,2]
[360785893,1747024233161,-7934.5984926,0.00013598,2]
[360785894,1747024233173,-425.18333004,0.00013598,2]
[360785895,1747024233209,-5720.000016,0.00013598,2]
[360785896,1747024233235,-839.1315495,0.00013598,2]
[360785897,1747024233247,-461.96619064,0.00013598,2]
[360785898,1747024233271,-58495.81962799,0.00013598,2]
[360785899,1747024233281,-914.23,0.000136,2]
[360785900,1747024233290,-1000.0,0.000136,2]
[360785901,1747024233300,-352.72,0.000136,2]
[360785902,1747024233310,-150.0,0.00013601,2]
[360785903,1747024233319,-150.0,0.00013602,2]
[360785904,1747024233329,-150.0,0.00013603,2]
[360785905,1747024233338,-150.0,0.00013604,2]
[360785906,1747024233348,-1000.0,0.00013605,2]
[360785907,1747024233357,-150.0,0.00013608,2]
[360785908,1747024233367,-310.51076607,0.00013609,2]
[360785909,1747024233378,-150.0,0.00013611,2]
[360785910,1747024233387,-300.0,0.00013614,2]
[360785911,1747024233397,-470.40515695,0.00013615,2]
[360785912,1747024233407,-150.0,0.00013615,2]
[360785913,1747024233416,-310.51076607,0.00013621,2]
[360785914,1747024233426,-150.0,0.00013624,2]
[360785915,1747024233437,-2111.5790837,0.00013629,2]
[360785916,1747024233456,-470.40515695,0.00013632,2]
[360785917,1747024233466,-310.51076607,0.00013632,2]
[360785918,1747024233476,-150.0,0.00013635,2]
[360785919,1747024233486,-150.0,0.00013639,2]
[360785920,1747024233497,-150.0,0.0001364,2]
[360785921,1747024233507,-310.51076607,0.00013643,2]
[360785922,1747024233517,-150.0,0.00013644,2]
[360785923,1747024233526,-470.40515695,0.00013648,2]
[360785924,1747024233536,-150.0,0.0001365,2]
[360785925,1747024233546,-151.62951033,0.00013651,2]
[360785926,1747024233557,-310.51076607,0.00013655,2]
[360785927,1747024233567,-150.0,0.00013659,2]
[360785928,1747024233578,-2111.5790837,0.00013659,2]
[360785929,1747024233588,-211.949,0.00013661,2]
[360785930,1747024233598,-470.40515695,0.00013665,2]
[360785931,1747024233608,-310.51076607,0.00013666,2]
[360785932,1747024233618,-3784.648,0.00013666,2]
[360785933,1747024233629,-150.0,0.00013666,2]
[360785934,1747024233639,-150.0,0.00013667,2]
[360785935,1747024233648,-315.574446,0.00013669,2]
[360785936,1747024233659,-315.574446,0.00013669,2]
[360785937,1747024233669,-231.287161,0.00013669,2]
[360785938,1747024233679,-365.897307,0.00013669,2]
[360785939,1747024233688,-231.287161,0.00013669,2]
[360785940,1747024233698,-365.897307,0.00013669,2]
[360785941,1747024233707,-151.0,0.00013669,2]
[360785942,1747024233716,-152.284446,0.00013669,2]